{"text_format":"1","workbook":"xlsx","n_sheets":2,"sheets":["PFC-FEP","PFC-FEP D"],"not_rendered":{"charts":0,"images":0,"macros":1,"external_links":0,"defined_names":4,"comments":0,"pivot_tables":0},"unopened":[],"bounds":{"document_bytes":16777216,"sheet_cells":100000,"rows_first":2000,"rows_last":500,"rows_between":2000,"halvings":0,"cell_chars":16384,"cell_head_chars":4096},"cells_cut":0,"cells_raw":0,"read":"whole","date_system":"1900"}

{"sheet":"PFC-FEP","index":0,"n_rows":98,"n_cols":12,"rows_kept":98,"cut":false,"hidden":false,"merged":[[28,0,28,11],[60,0,60,11],[19,3,19,4],[14,3,18,4],[14,0,18,0],[14,1,18,1],[14,2,18,2],[30,0,34,0],[20,3,20,4],[21,3,21,4],[22,3,22,4],[23,3,23,4],[24,3,24,4],[25,3,25,4],[1,10,1,11],[0,10,0,11],[6,0,6,11],[9,0,9,11],[18,5,18,11],[12,0,12,11],[62,0,66,0],[66,5,66,11],[34,5,34,11],[30,3,34,3],[62,3,66,3],[62,4,66,4],[30,4,34,4],[30,1,34,1],[30,2,34,2],[62,1,66,1],[62,2,66,2]]}
[2027]
[null,null,null,null,null,null,null,null,null,null," PFC-FEP"]
[]
[]
[]
[]
[]
[]
[]
["PROJEKT PLANU FINANSOWEGO FUNDUSZU EMERYTUR POMOSTOWYCH"]
[]
[]
["Część A"]
[]
["L.p.","CHAPTER_CODE","UATTRIBUTE01","Treść",null,"Wstępne wykonanie","Ustawa","Przewidywane ","Projekt","Projekt","Projekt","Projekt"]
[null,null,null,null,null," / wykonanie*)","budżetowa","wykonanie","planu ","planu ","planu ","planu "]
[null,null,null,null,null," ……. r.","na ……… r.","w ………. r.","na ……….. r.","na ………... r.","na ……….. r.","na …….. r."]
[null,null,null,null,null,"(rok n-2)","(rok n-1)","(rok n-1)","(rok n)","(rok n+1)","(rok n+2)","(rok n+3)"]
[null,null,null,null,null,"w tysiącach złotych"]
[1,null,null,2,null,3,4,5,6,7,8,9]
["I","PFCFEP.A1_1","PFCFEP.A1_1.I","Zadania realizowane na podstawie ustaw",null,{"$f":"SUM(F22:F26)","v":0},{"$f":"SUM(G22:G26)","v":0},0,0,0,0,0]
[1,"PFCFEP.POZ_A_1","PFCFEP.POZ_A_1"]
[2,"PFCFEP.POZ_A_1","PFCFEP.POZ_A_1"]
[3,"PFCFEP.POZ_A_1","PFCFEP.POZ_A_1"]
[4,"PFCFEP.POZ_A_1","PFCFEP.POZ_A_1"]
[5,"PFCFEP.POZ_A_1","PFCFEP.POZ_A_1"]
[]
[]
["Część B. Plan w układzie memoriałowym "]
[]
["L.p.","CHAPTER_CODE","UATTRIBUTE01","Treść","Paragrafy","Wstępne wykonanie","Ustawa","Przewidywane ","Projekt","Projekt","Projekt","Projekt"]
[null,null,null,null,null," / wykonanie*)","budżetowa","wykonanie","planu ","planu ","planu ","planu "]
[null,null,null,null,null," ……. r.","na ……… r.","w ………. r.","na ……….. r.","na ………... r.","na ……….. r.","na …….. r."]
[null,null,null,null,null,"(rok n-2)","(rok n-1)","(rok n-1)","(rok n)","(rok n+1)","(rok n+2)","(rok n+3)"]
[null,null,null,null,null,"w tysiącach złotych"]
[1,null,null,2,3,4,5,6,7,8,9,10]
["I","PFCFEP.B1_1","PFCFEP.B1_1.I","Stan funduszu na początek roku","x",{"$f":"F38+F39+F40-F41","v":0},{"$f":"G38+G39+G40-G41","v":0},0,0,0,0,0]
["1.","PFCFEP.B1_1","PFCFEP.B1_1.I.1","Środki pieniężne","x"]
["2.","PFCFEP.B1_1","PFCFEP.B1_1.I.2","Ulokowane środki finansowe ","x"]
["3.","PFCFEP.B1_1","PFCFEP.B1_1.I.3","Należności","x"]
["4.","PFCFEP.B1_1","PFCFEP.B1_1.I.4","Zobowiązania","x"]
["II","PFCFEP.B1_1","PFCFEP.B1_1.II","Przychody ",null,{"$f":"SUM(F43:F47)","v":0},{"$f":"SUM(G43:G47)","v":0},{"$f":"SUM(H43:H47)","v":0},{"$f":"SUM(I43:I47)","v":0},{"$f":"SUM(J43:J47)","v":0},{"$f":"SUM(K43:K47)","v":0},0]
["1.","PFCFEP.B1_1","PFCFEP.B1_1.II.1","Dotacja z budżetu państwa",388]
["2.","PFCFEP.B1_1","PFCFEP.B1_1.II.2","Składki ",191]
["3.","PFCFEP.B1_1","PFCFEP.B1_1.II.5","Inne wpłaty","406, 407"]
["4.","PFCFEP.B1_1","PFCFEP.B1_1.II.3","Pozostałe przychody","180, 186, 189, 201, 690"]
["5.","PFCFEP.B1_1","PFCFEP.B1_1.II.4","Pozostałe zwiększenia","x"]
["III","PFCFEP.B1_1","PFCFEP.B1_1.III","Koszty ","x",{"$f":"SUM(F49+F52+F53)","v":0},{"$f":"SUM(G49+G52+G53)","v":0},0,{"$f":"SUM(I49+I52+I53)","v":0},0,0,0]
["1.","PFCFEP.B1_1","PFCFEP.B1_1.III.1","Transfery na rzecz ludności","201, 690",{"$f":"SUM(F50+F51)","v":0},{"$f":"SUM(G50+G51)","v":0},0,0,0,0,0]
["1.1.","PFCFEP.B1_1","PFCFEP.B1_1.III.1.1","Emerytury pomostowe","x"]
["1.2.","PFCFEP.B1_1","PFCFEP.B1_1.III.1.2","Pozostałe świadczenia","x"]
["2.","PFCFEP.B1_1","PFCFEP.B1_1.III.2","Odpis na działalność Zakładu Ubezpieczeń Społecznych",481]
["3.","PFCFEP.B1_1","PFCFEP.B1_1.III.3","Pozostałe zmniejszenia","x"]
["IV","PFCFEP.B1_1","PFCFEP.B1_1.IV","Stan funduszu na koniec roku (I+II-III)","x",{"$f":"F37+F42-F48","v":0},{"$f":"G37+G42-G48","v":0},0,0,0,0,0]
["1.","PFCFEP.B1_1","PFCFEP.B1_1.IV.1","Środki pieniężne","x"]
["2.","PFCFEP.B1_1","PFCFEP.B1_1.IV.2","Ulokowane środki finansowe ","x"]
["3.","PFCFEP.B1_1","PFCFEP.B1_1.IV.3","Należności","x"]
["4.","PFCFEP.B1_1","PFCFEP.B1_1.IV.4","Zobowiązania","x"]
[]
[]
["Część C. Dane w układzie kasowym"]
[]
["L.p.","CHAPTER_CODE","UATTRIBUTE01","Treść","Paragrafy","Wstępne wykonanie","Ustawa","Przewidywane ","Projekt","Projekt","Projekt","Projekt"]
[null,null,null,null,null," / wykonanie*)","budżetowa","wykonanie","planu ","planu ","planu ","planu "]
[null,null,null,null,null," ……. r.","na ……… r.","w ………. r.","na ……….. r.","na ………... r.","na ……….. r.","na …….. r."]
[null,null,null,null,null,"(rok n-2)","(rok n-1)","(rok n-1)","(rok n)","(rok n+1)","(rok n+2)","(rok n+3)"]
[null,null,null,null,null,"w tysiącach złotych"]
[1,null,null,null,3,4,5,6,7,8,9,10]
["I","PFCFEP.C1_1","PFCFEP.C1_1.I","Dochody ","x",{"$f":"SUM(F70+F71+F72+F73)","v":0},{"$f":"SUM(G70+G71+G72+G73)","v":0},0,0,0,0,0]
["1.","PFCFEP.C1_1","PFCFEP.C1_1.I.1","Dotacja z budżetu państwa",388]
["2.","PFCFEP.C1_1","PFCFEP.C1_1.I.2","Składki ",191]
["3.","PFCFEP.C1_1","PFCFEP.C1_1.I.4","Inne wpłaty","406, 407"]
["4.","PFCFEP.C1_1","PFCFEP.C1_1.I.3","Pozostałe dochody","180, 186, 189, 201, 690"]
["II","PFCFEP.C1_1","PFCFEP.C1_1.II","Wydatki","x",{"$f":"SUM(F85+F86)","v":0},{"$f":"SUM(G85+G86)","v":0},0,0,0,0,0]
[null,"PFCFEP.C1_1","PFCFEP.C1_1.II.0","w tym:","x",{"$f":"SUM(F76,F77,F78,F79,F80,F81,F82,F84,F83)","v":0},{"$f":"SUM(G76,G77,G78,G79,G80,G81,G82,G84,G83)","v":0},0,0,0,0,0]
["II.A","PFCFEP.C1_1","PFCFEP.C1_1.II.A","- finansowanie z UE pochodzące z BP 1)","x"]
["II.B","PFCFEP.C1_1","PFCFEP.C1_1.II.B","- finansowanie z UE pochodzące z BŚE","x"]
["II.C","PFCFEP.C1_1","PFCFEP.C1_1.II.C","- finansowanie z EFTA pochodzące z BP 2)","x"]
["II.D","PFCFEP.C1_1","PFCFEP.C1_1.II.D","- finansowanie z EFTA pochodzące z BŚE","x"]
["II.E","PFCFEP.C1_1","PFCFEP.C1_1.II.E","- finansowanie zadań w ramach KPO – część grantowa","x"]
["II.F","PFCFEP.C1_1","PFCFEP.C1_1.II.F","- współfinansowanie krajowe z BP w ramach projektów UE 3)","x"]
["II.G","PFCFEP.C1_1","PFCFEP.C1_1.II.G","- współfinansowanie krajowe z BP w ramach projektów EFTA 4)","x"]
["II.H","PFCFEP.C1_1","PFCFEP.C1_1.II.H","- współfinansowanie krajowe z innych źródeł niż BP w ramach projektów UE 3)","x"]
["II.I","PFCFEP.C1_1","PFCFEP.C1_1.II.I","- finansowanie z innych źródeł niż BP i BŚE w ramach projektów UE 1)","x"]
["1.","PFCFEP.C1_1","PFCFEP.C1_1.II.1","Transfery na rzecz ludności","201, 690"]
["2.","PFCFEP.C1_1","PFCFEP.C1_1.II.2","Odpis na działalność Zakładu Ubezpieczeń Społecznych",481]
[]
["*) Niepotrzebne skreslić"]
["     1) W tej pozycji należy wykazać środki w paragrafach z czwartą cyfrą 1, 8."]
["     2) W tej pozycji należy wykazać środki w paragrafach z czwartą cyfrą 5."]
["     3) W tej pozycji należy wykazać środki w paragrafach z czwartą cyfrą 2 i 9."]
["     4) W tej pozycji należy wykazać środki w paragrafach z czwartą cyfrą 6."]
[]
["sporządził..................................................................."]
["                     (imię i nazwisko, stanowisko służbowe)"]
[]
["nr telefonu................................",null,null,null,"adres e-mail..................................."]
["data..........................",null,null,null,"podpis.............................................."]

{"sheet":"PFC-FEP D","index":1,"n_rows":23,"n_cols":44,"rows_kept":23,"cut":false,"hidden":true,"merged":[[5,42,6,42],[3,26,3,34],[3,35,3,43],[4,8,4,43],[5,43,6,43],[5,33,6,33],[5,15,6,15],[5,16,6,16],[5,34,6,34],[5,35,6,35],[2,8,2,43],[3,8,3,16],[3,17,3,25],[5,24,6,24],[5,25,6,25],[5,8,6,8],[5,9,5,12],[5,13,5,14],[5,17,6,17],[5,18,5,21],[5,36,5,39],[5,40,5,41],[5,22,5,23],[5,31,5,32],[5,26,6,26],[5,27,5,30],[2,0,6,0],[2,1,6,1],[5,2,6,2],[5,3,6,3],[2,2,4,7],[5,4,5,7]]}
[]
["Część D  Plan finansowy w układzie zadaniowym"]
["Kod klasyfikacji zadaniowej","Cel","Miernik",null,null,null,null,null,"Wydatki według źródeł finansowania / Koszty"]
[null,null,null,null,null,null,null,null,"2017 r.",null,null,null,null,null,null,null,null,"2018 r.",null,null,null,null,null,null,null,null,"2019 r.",null,null,null,null,null,null,null,null,"2020 r.*)"]
[null,null,null,null,null,null,null,null,"w tysiącach złotych"]
[null,null,"Nazwa","Wartość bazowa","Docelowa",null,null,null,"Ogółem\n(10+14+16+17)","Dotacje z budżetu państwa",null,null,null,"Środki otrzymane od innych jednostek SFP o których mowa w art. 9 pkt 5-7 i 14 uofp",null,"Budżet środków europejskich","Pozostałe środki ","Ogółem\n(19+23+25+26)","Dotacje z budżetu państwa",null,null,null,"Środki otrzymane od innych jednostek SFP o których mowa w art. 9 pkt 5-7 i 14 uofp",null,"Budżet środków europejskich","Pozostałe środki ","Ogółem\n(28+32+34+35)","Dotacje z budżetu państwa",null,null,null,"Środki otrzymane od innych jednostek SFP o których mowa w art. 9 pkt 5-7 i 14 uofp",null,"Budżet środków europejskich","Pozostałe środki ","Ogółem\n(37+41+43+44)","Dotacje z budżetu państwa",null,null,null,"Środki otrzymane od innych jednostek SFP o których mowa w art. 9 pkt 5-7 i 14 uofp",null,"Budżet środków europejskich","Pozostałe środki "]
[null,null,null,null,"2017 r.","2018 r.","2019 r.","2020 r.",null,"Kwota dotacji","Część budżetowa","Dział klasyfikacji budżetowej","Rozdział klasyfikacji budżetowej","Kwota przekazanych środków","Jednostka przekazująca",null,null,null,"Kwota dotacji","Część budżetowa","Dział klasyfikacji budżetowej","Rozdział klasyfikacji budżetowej","Kwota przekazanych środków","Jednostka przekazująca",null,null,null,"Kwota dotacji","Część budżetowa","Dział klasyfikacji budżetowej","Rozdział klasyfikacji budżetowej","Kwota przekazanych środków","Jednostka przekazująca",null,null,null,"Kwota dotacji","Część budżetowa","Dział klasyfikacji budżetowej","Rozdział klasyfikacji budżetowej","Kwota przekazanych środków","Jednostka przekazująca"]
[1,2,3,4,5,6,7,8,9,10,11,12,13,14,15,16,17,18,19,20,21,22,23,24,25,26,27,28,29,30,31,32,33,34,35,36,37,38,39,40,41,42,43,44]
[]
[]
[]
[]
[]
[null,null,null,null,null,null,null,null,null,null,null,null,null,null,null,null," "]
[]
["*) Kolumna \"2020 r.\"  dotyczy jedynie sporządzania materiałów na potrzeby Wieloletniego Planu Finansowego Państwa."]
[]
[]
["sporządził ....................................................................."]
[null,"          (imię i nazwisko, stanowisko służbowe)"]
[]
["nr telefonu .........................     adres e-mail ........................................"]
["data .........................              podpis ........................."]